[Event "Polish Youth Ekstraliga 2022"]
[Site "Lublin"]
[Date "2022.07.01"]
[Round "7.8"]
[White "Dalkowski, Rafal"]
[Black "Budzisz, Adrian"]
[Result "1-0"]
[ECO "E16"]
[WhiteElo "2028"]
[BlackElo "2152"]
[Annotator "RC"]
[PlyCount "107"]
[EventDate "2022.06.24"]
[EventType "team-tourn"]
[EventCountry "POL"]
[SourceTitle "playchess.com"]
[Source "ChessBase"]
[SourceQuality "1"]
[TimeControl "40/5400+30:1800+30"]

1. d4 {[%emt 0:00:03]} Nf6 {[%emt 0:00:09]} 2. c4 {[%emt 0:00:04]} e6 {[%emt 0:00:06]} 3. Nf3 {[%emt 0:00:06]} Bb4+ {[%emt 0:00:43]} 4. Bd2 {[%emt 0:00:16]} Qe7 {[%emt 0:00:57]} 5. Nc3 {[%emt 0:00:24]} Nc6 {[%emt 0:03:57]} 6. Qc2 {[%emt 0:04:16]} d5 {[%emt 0:00:10]} 7. e3 {[%emt 0:00:50]} Bxc3 {[%emt 0:04:06]} 8. Bxc3 {[%emt 0:00:08]} Ne4 {[%emt 0:00:05]} 9. Bd3 {[%emt 0:04:16]} Nxc3 {[%emt 0:00:13]} 10. bxc3 {[%emt 0:00:48]} h6 {[%emt 0:02:12]} 11. O-O {[%emt 0:01:16]} O-O {[%emt 0:00:13]} 12. Rfe1 {[%emt 0:02:51]} dxc4 {[%emt 0:05:01]} 13. Bxc4 {[%emt 0:00:34]} Na5 {[%emt 0:00:08]} 14. Bd3 {[%emt 0:03:32]} c5 {[%emt 0:00:08]} 15. Ne5 {[%emt 0:04:51]} b6 {[%emt 0:02:13]} 16. Bh7+ {[%emt 0:09:24]} Kh8 {[%emt 0:00:41]} 17. Be4 {[%emt 0:00:12]} Rb8 {[%emt 0:03:36]} 18. h3 {[%emt 0:08:10]} Qc7 {[%emt 0:05:49]} 19. Rab1 {[%emt 0:08:45]} Bb7 {[%emt 0:03:12]} 20. Bxb7 {[%emt 0:00:58]} Rxb7 {[%emt 0:00:59]} 21. Qe4 {[%emt 0:01:24]} Rc8 {[%emt 0:01:31]} 22. Red1 {[%emt 0:05:14]} cxd4 {[%emt 0:03:50]} 23. Rxd4 {[%emt 0:04:48]} Kg8 {[%emt 0:12:39]} 24. Rbd1 {[%emt 0:02:18]} f6 {[%emt 0:00:27]} 25. Rd7 {[%emt 0:02:07]} Qxe5 {[%emt 0:01:05]} 26. Qg6 {[%emt 0:09:24]} Rxd7 {[%emt 0:00:32]} 27. Rxd7 {[%emt 0:00:04]} f5 {[%emt 0:00:47]} 28. Rxg7+ {[%emt 0:00:33]} Qxg7 {[%emt 0:00:20]} 29. Qxe6+ {[%emt 0:00:05]} Qf7 {[%emt 0:00:21]} 30. Qxc8+ {[%emt 0:00:13]} Kg7 {[%emt 0:00:05]} 31. Qb8 {[%emt 0:02:13]} Nc4 {[%emt 0:00:59]} 32. Qf4 {[%emt 0:00:33]} b5 {[%emt 0:02:39]} 33. e4 {[%emt 0:01:02]} Qd7 {[%emt 0:05:54]} 34. g3 {[%emt 0:03:40]} Nd2 {[%emt 0:02:06]} 35. exf5 {[%emt 0:01:05]} Qd5 {[%emt 0:01:05]} 36. Qg4+ {[%emt 0:03:42]} Kf8 {[%emt 0:06:50]} 37. Qg6 {[%emt 0:00:59]} Qxa2 {[%emt 0:15:04]} 38. Qxh6+ {[%emt 0:01:42]} Kf7 {[%emt 0:10:17]} 39. Qg6+ {[%emt 0:01:34]} Ke7 {[%emt 0:03:23]} 40. f6+ {[%emt 0:00:00]} Kd8 {[%emt 0:00:00]} 41. Qd3+ {[%emt 0:14:06]} Ke8 {[%emt 0:03:47]} 42. Qe3+ {[%emt 0:06:22]} Kd7 {[%emt 0:15:04]} 43. Qe7+ {[%emt 0:01:17]} Kc6 {[%emt 0:00:33]} 44. Qe8+ {[%emt 0:00:47]} Kb6 {[%emt 0:00:50]} 45. f7 {[%emt 0:00:55]} Qb1+ {[%emt 0:03:40]} 46. Kh2 {[%emt 0:00:25]} Nf3+ {[%emt 0:01:07]} 47. Kg2 {[%emt 0:00:07]} Ne1+ {[%emt 0:00:16]} 48. Kf1 {[%emt 0:00:30]} Nc2+ {[%emt 0:05:15]} 49. Ke2 {[%emt 0:02:24]} Qe1+ {[%emt 0:00:46]} 50. Kf3 {[%emt 0:01:48]} Qd1+ {[%emt 0:00:41]} 51. Kf4 {[%emt 0:01:24]} Qd6+ {[%emt 0:03:17]} 52. Kf5 {[%emt 0:01:17]} Qc5+ {[%emt 0:00:50]} 53. Kg6 {[%emt 0:00:51]} Qxf2 {[%emt 0:03:04]} 54. Qb8+ {[%emt 0:00:22]} 1-0

[Event "Polish Youth Ekstraliga 2022"]
[Site "Lublin"]
[Date "2022.07.01"]
[Round "7.9"]
[White "Ptaszynski, Szymon"]
[Black "Mulawa, Cyprian"]
[Result "0-1"]
[ECO "B51"]
[WhiteElo "1781"]
[BlackElo "2050"]
[Annotator "RC"]
[PlyCount "102"]
[EventDate "2022.06.24"]
[EventType "team-tourn"]
[EventCountry "POL"]
[SourceTitle "playchess.com"]
[Source "ChessBase"]
[SourceQuality "1"]
[TimeControl "40/5400+30:1800+30"]

1. e4 {[%emt 0:00:19]} c5 {[%emt 0:00:08]} 2. Nf3 {[%emt 0:00:19]} d6 {[%emt 0:00:46]} 3. Bb5+ {[%emt 0:00:33]} Nd7 {[%emt 0:00:21]} 4. a4 {[%emt 0:00:11]} a6 {[%emt 0:02:01]} 5. Be2 {[%emt 0:00:09]} Ngf6 {[%emt 0:00:12]} 6. Nc3 {[%emt 0:00:05]} g6 {[%emt 0:00:11]} 7. d4 {[%emt 0:00:07]} cxd4 {[%emt 0:00:11]} 8. Nxd4 {[%emt 0:00:03]} Bg7 {[%emt 0:00:05]} 9. Be3 {[%emt 0:00:05]} O-O {[%emt 0:02:41]} 10. O-O {[%emt 0:00:04]} Ne5 {[%emt 0:08:43]} 11. f3 {[%emt 0:09:57]} Bd7 {[%emt 0:05:47]} 12. Qd2 {[%emt 0:05:38]} Rc8 {[%emt 0:01:43]} 13. Rfd1 {[%emt 0:02:47]} Nc4 {[%emt 0:05:43]} 14. Bxc4 {[%emt 0:00:12]} Rxc4 {[%emt 0:00:01]} 15. b3 {[%emt 0:00:56]} Rc8 {[%emt 0:00:32]} 16. Rac1 {[%emt 0:00:38]} Qa5 {[%emt 0:14:40]} 17. Nde2 {[%emt 0:09:55]} Rfe8 {[%emt 0:07:17]} 18. Bd4 {[%emt 0:10:32]} Bc6 {[%emt 0:07:12]} 19. Rb1 {[%emt 0:09:43]} Qc7 {[%emt 0:02:26]} 20. Na2 {[%emt 0:06:46]} e5 {[%emt 0:08:18]} 21. Be3 {[%emt 0:01:03]} d5 {[%emt 0:00:16]} 22. exd5 {[%emt 0:00:59]} Nxd5 {[%emt 0:00:53]} 23. Bf2 {[%emt 0:09:53]} Rcd8 {[%emt 0:07:15]} 24. c4 {[%emt 0:09:58]} Nf6 {[%emt 0:05:28]} 25. Qb4 {[%emt 0:09:59]} Rxd1+ {[%emt 0:00:50]} 26. Rxd1 {[%emt 0:00:07]} e4 {[%emt 0:01:03]} 27. Bg3 {[%emt 0:02:04]} Qc8 {[%emt 0:00:06]} 28. f4 {[%emt 0:01:15]} Qg4 {[%emt 0:03:03]} 29. Qe1 {[%emt 0:01:17]} Nh5 {[%emt 0:02:12]} 30. Nb4 {[%emt 0:02:51]} Nxg3 {[%emt 0:01:39]} 31. hxg3 {[%emt 0:00:25]} Bf8 {[%emt 0:01:18]} 32. Nxc6 {[%emt 0:00:05]} bxc6 {[%emt 0:00:01]} 33. b4 {[%emt 0:00:20]} Bxb4 {[%emt 0:00:06]} 34. Qxb4 {[%emt 0:00:10]} Qxe2 {[%emt 0:00:01]} 35. Re1 {[%emt 0:00:12]} Qd3 {[%emt 0:01:06]} 36. Kh2 {[%emt 0:02:05]} e3 {[%emt 0:01:48]} 37. Qc5 {[%emt 0:02:49]} Re6 {[%emt 0:03:38]} 38. Qb4 {[%emt 0:02:12]} e2 {[%emt 0:01:12]} 39. Qb8+ {[%emt 0:01:03]} Kg7 {[%emt 0:00:12]} 40. Qb2+ {[%emt 0:00:00]} Kh6 {[%emt 0:00:00]} 41. Qb4 {[%emt 0:03:00]} Kh5 {[%emt 0:11:43]} 42. Qc5+ {[%emt 0:20:41]} f5 {[%emt 0:00:46]} 43. Kh3 {[%emt 0:00:53]} Re3 {[%emt 0:02:18]} 44. Qa7 {[%emt 0:00:06]} Rxg3+ {[%emt 0:01:36]} 45. Kh2 {[%emt 0:00:06]} Kg4 {[%emt 0:00:43]} 46. Qf2 {[%emt 0:00:30]} Qe3 {[%emt 0:01:15]} 47. Rxe2 {[%emt 0:00:08]} Qxf2 {[%emt 0:00:06]} 48. Rxf2 {[%emt 0:00:02]} Rc3 {[%emt 0:00:10]} 49. Rb2 {[%emt 0:00:04]} Rxc4 {[%emt 0:00:09]} 50. Rb6 {[%emt 0:00:04]} Rxa4 {[%emt 0:00:15]} 51. Rxc6 {[%emt 0:00:04]} Kxf4 {[%emt 0:00:04]} 0-1

[Event "Polish Youth Ekstraliga 2022"]
[Site "Lublin"]
[Date "2022.07.01"]
[Round "7.10"]
[White "Suska, Szymon"]
[Black "Rekuc, Patryk"]
[Result "1/2-1/2"]
[ECO "A05"]
[WhiteElo "1604"]
[BlackElo "1842"]
[Annotator "NA RC"]
[PlyCount "129"]
[EventDate "2022.06.24"]
[EventType "team-tourn"]
[EventCountry "POL"]
[SourceTitle "playchess.com"]
[Source "ChessBase"]
[SourceQuality "1"]
[TimeControl "40/5400+30:1800+30"]

1. Nf3 {[%emt 0:00:03]} Nf6 {[%emt 0:00:05]} 2. g3 {[%emt 0:00:03]} g6 {[%emt 0:00:04]} 3. Bg2 {[%emt 0:00:05]} Bg7 {[%emt 0:00:04]} 4. O-O {[%emt 0:00:06]} O-O {[%emt 0:00:04]} 5. c4 {[%emt 0:00:17]} d6 {[%emt 0:00:03]} 6. Nc3 {[%emt 0:00:09]} c5 {[%emt 0:00:35]} 7. d3 {[%emt 0:00:42]} Nc6 {[%emt 0:00:10]} 8. a3 {[%emt 0:00:41]} a5 {[%emt 0:02:04]} 9. Bg5 {[%emt 0:06:07]} h6 {[%emt 0:03:15]} 10. Bd2 {[%emt 0:04:18]} Nd7 {[%emt 0:04:32]} 11. Nh4 {[%emt 0:09:42]} Kh7 {[%emt 0:01:34]} 12. f4 {[%emt 0:14:58]} Rb8 {[%emt 0:02:34]} 13. Rb1 {[%emt 0:11:08]} e6 {[%emt 0:04:44]} 14. e3 {[%emt 0:08:43]} Nf6 {[%emt 0:04:50]} 15. Nf3 {[%emt 0:04:13]} d5 {[%emt 0:03:44]} 16. e4 {[%emt 0:03:33]} dxc4 {[%emt 0:03:24]} 17. dxc4 {[%emt 0:00:05]} Nd4 {[%emt 0:00:29]} 18. Bc1 {[%emt 0:05:21]} Nxf3+ {[%emt 0:07:25]} 19. Bxf3 {[%emt 0:00:22]} b6 {[%emt 0:01:10]} 20. Qxd8 {[%emt 0:02:23]} Rxd8 {[%emt 0:00:05]} 21. e5 {[%emt 0:00:27]} Ng8 {[%emt 0:00:32]} 22. Rd1 {[%emt 0:01:29]} Rxd1+ {[%emt 0:00:26]} 23. Bxd1 {[%emt 0:00:24]} Bb7 {[%emt 0:00:46]} 24. Be3 {[%emt 0:01:30]} Rd8 {[%emt 0:00:35]} 25. Be2 {[%emt 0:01:11]} Bc6 {[%emt 0:01:12]} 26. Rd1 {[%emt 0:00:53]} Rxd1+ {[%emt 0:00:05]} 27. Nxd1 {[%emt 0:00:24]} f6 {[%emt 0:00:34]} 28. exf6 {[%emt 0:02:41]} Bxf6 {[%emt 0:00:10]} 29. Kf2 {[%emt 0:03:37]} Ne7 {[%emt 0:00:31]} 30. g4 {[%emt 0:01:13]} Kg7 {[%emt 0:03:15]} 31. Ke1 {[%emt 0:02:50]} Kf7 {[%emt 0:00:46]} 32. Bd2 {[%emt 0:01:58]} Nc8 {[%emt 0:01:36]} 33. Bc3 {[%emt 0:01:14]} Nd6 {[%emt 0:00:55]} 34. Bd3 {[%emt 0:01:30]} Bf3 {[%emt 0:20:46]} 35. Bxf6 {[%emt 0:00:33]} Kxf6 {[%emt 0:01:52]} 36. Ne3 {[%emt 0:00:13]} g5 {[%emt 0:01:54]} 37. Kf2 {[%emt 0:02:11]} gxf4 {[%emt 0:00:07]} 38. Kxf3 {[%emt 0:00:23]} fxe3 {[%emt 0:00:04]} 39. Kxe3 {[%emt 0:00:34]} Kg5 {[%emt 0:00:13]} 40. Kf3 {[%emt 0:00:00]} e5 {[%emt 0:00:00]} 41. Kg3 {[%emt 0:01:23]} Kf6 {[%emt 0:02:07]} 42. Kf3 {[%emt 0:01:24]} e4+ {[%emt 0:00:22]} 43. Bxe4 {[%emt 0:00:06]} Nxc4 {[%emt 0:00:04]} 44. h4 {[%emt 0:02:23]} Nxb2 {[%emt 0:00:28]} 45. Ke2 {[%emt 0:03:14]} Nc4 {[%emt 0:07:17]} 46. a4 {[%emt 0:02:38]} Ne5 {[%emt 0:00:05]} 47. Bf3 {[%emt 0:03:52]} Ke6 {[%emt 0:01:15]} 48. Ke3 {[%emt 0:01:47]} Nc4+ {[%emt 0:08:31]} 49. Kf4 {[%emt 0:02:05]} Nb2 $1 {[%emt 0:02:29]} 50. Bc6 {[%emt 0:01:22]} Nd3+ {[%emt 0:01:36]} 51. Ke4 {[%emt 0:01:12]} Nf2+ {[%emt 0:00:46]} 52. Kf3 {[%emt 0:00:34]} Nd3 {[%emt 0:01:05]} 53. Ke4 {[%emt 0:00:06]} Nb4 {[%emt 0:00:08]} 54. Bb5 {[%emt 0:01:05]} Kf6 {[%emt 0:00:39]} 55. Bc4 {[%emt 0:03:01]} Nc2 {[%emt 0:00:21]} 56. Bd3 {[%emt 0:01:07]} Nb4 {[%emt 0:02:10]} 57. Bc4 {[%emt 0:00:05]} Nc2 {[%emt 0:00:58]} 58. Bd3 {[%emt 0:00:04]} Ne1 {[%emt 0:00:11]} 59. Bb1 {[%emt 0:03:01]} Ng2 {[%emt 0:00:17]} 60. g5+ {[%emt 0:00:19]} hxg5 {[%emt 0:00:04]} 61. hxg5+ {[%emt 0:00:05]} Kxg5 {[%emt 0:00:05]} 62. Kd5 {[%emt 0:00:08]} Ne3+ {[%emt 0:00:50]} 63. Kc6 $11 {[%emt 0:00:10]} Nc4 {[%emt 0:00:04]} 64. Ba2 {[%emt 0:00:23]} Nb2 {[%emt 0:00:30]} 65. Kxb6 {[%emt 0:00:17]} 1/2-1/2

[Event "Polish Youth Ekstraliga 2022"]
[Site "Lublin"]
[Date "2022.07.01"]
[Round "7.11"]
[White "Marcinczyk, Monika"]
[Black "Rejniak, Zuzanna"]
[Result "0-1"]
[ECO "B03"]
[WhiteElo "1991"]
[BlackElo "1804"]
[Annotator "RC"]
[PlyCount "140"]
[EventDate "2022.06.24"]
[EventType "team-tourn"]
[EventCountry "POL"]
[SourceTitle "playchess.com"]
[Source "ChessBase"]
[SourceQuality "1"]
[TimeControl "40/5400+30:1800+30"]

1. e4 {[%emt 0:00:03]} Nf6 {[%emt 0:01:47]} 2. e5 {[%emt 0:00:08]} Nd5 {[%emt 0:00:04]} 3. d4 {[%emt 0:00:06]} d6 {[%emt 0:00:04]} 4. c4 {[%emt 0:00:23]} Nb6 {[%emt 0:00:07]} 5. exd6 {[%emt 0:00:14]} exd6 {[%emt 0:00:08]} 6. Nc3 {[%emt 0:03:43]} Be7 {[%emt 0:03:26]} 7. Bd3 {[%emt 0:01:17]} Bf6 {[%emt 0:00:49]} 8. Nge2 {[%emt 0:02:32]} Nc6 {[%emt 0:00:45]} 9. Be3 {[%emt 0:00:17]} Nb4 {[%emt 0:05:32]} 10. Bb1 {[%emt 0:05:31]} Bg4 {[%emt 0:17:28]} 11. O-O {[%emt 0:06:28]} O-O {[%emt 0:04:28]} 12. a3 {[%emt 0:01:45]} Nc6 {[%emt 0:04:08]} 13. f3 {[%emt 0:25:42]} Bc8 {[%emt 0:05:45]} 14. Ba2 {[%emt 0:10:53]} Ne7 {[%emt 0:13:34]} 15. Rc1 {[%emt 0:06:40]} c6 {[%emt 0:04:36]} 16. Ne4 {[%emt 0:04:16]} Nf5 {[%emt 0:01:14]} 17. Nxf6+ {[%emt 0:00:55]} Qxf6 {[%emt 0:00:06]} 18. Bf2 {[%emt 0:00:53]} Qh6 {[%emt 0:06:13]} 19. Qd3 {[%emt 0:01:47]} Re8 {[%emt 0:04:42]} 20. Rfe1 {[%emt 0:01:08]} Bd7 {[%emt 0:03:57]} 21. b4 {[%emt 0:02:45]} d5 {[%emt 0:04:56]} 22. c5 {[%emt 0:01:49]} Nc8 {[%emt 0:00:55]} 23. Nc3 {[%emt 0:04:36]} Nce7 {[%emt 0:00:57]} 24. b5 {[%emt 0:01:10]} Ng6 {[%emt 0:00:53]} 25. g3 {[%emt 0:00:36]} Qg5 {[%emt 0:04:52]} 26. Kh1 {[%emt 0:01:46]} h5 {[%emt 0:01:11]} 27. Rc2 {[%emt 0:09:21]} Rxe1+ {[%emt 0:04:16]} 28. Bxe1 {[%emt 0:00:01]} Re8 {[%emt 0:00:04]} 29. Bf2 {[%emt 0:02:25]} h4 {[%emt 0:02:03]} 30. g4 {[%emt 0:02:33]} Ne3 {[%emt 0:00:47]} 31. Re2 {[%emt 0:00:45]} Nc4 {[%emt 0:01:45]} 32. Rxe8+ {[%emt 0:00:16]} Bxe8 {[%emt 0:00:01]} 33. Bxc4 {[%emt 0:00:35]} dxc4 {[%emt 0:00:03]} 34. Qe3 {[%emt 0:02:45]} Qxe3 {[%emt 0:00:37]} 35. Bxe3 {[%emt 0:00:01]} cxb5 {[%emt 0:03:03]} 36. f4 {[%emt 0:00:32]} a5 {[%emt 0:00:35]} 37. d5 {[%emt 0:00:51]} b4 {[%emt 0:00:26]} 38. axb4 {[%emt 0:00:12]} axb4 {[%emt 0:00:04]} 39. Na2 {[%emt 0:00:17]} b3 {[%emt 0:00:16]} 40. Nc3 {[%emt 0:00:00]} Ne7 {[%emt 0:00:00]} 41. d6 {[%emt 0:04:07]} Nc6 {[%emt 0:05:52]} 42. Nd1 {[%emt 0:10:36]} f5 {[%emt 0:04:49]} 43. gxf5 {[%emt 0:03:42]} Bh5 {[%emt 0:01:06]} 44. Nc3 {[%emt 0:00:27]} Bf3+ {[%emt 0:00:29]} 45. Kg1 {[%emt 0:00:15]} b2 {[%emt 0:00:01]} 46. d7 {[%emt 0:01:04]} Be4 {[%emt 0:00:16]} 47. f6 {[%emt 0:01:41]} gxf6 {[%emt 0:00:55]} 48. Bd4 {[%emt 0:00:18]} b1=Q+ 49. Nxb1 {[%emt 0:00:08]} Bxb1 {[%emt 0:01:00]} 50. Bxf6 {[%emt 0:00:13]} c3 {[%emt 0:00:01]} 51. Bxc3 {[%emt 0:00:47]} Bf5 {[%emt 0:00:03]} 52. d8=Q+ {[%emt 0:01:02]} Nxd8 {[%emt 0:00:06]} 53. Bf6 {[%emt 0:00:05]} Ne6 {[%emt 0:00:10]} 54. Bxh4 {[%emt 0:00:15]} Nxc5 {[%emt 0:00:02]} 55. Be1 {[%emt 0:04:21]} Nd3 {[%emt 0:01:00]} 56. Bd2 {[%emt 0:00:06]} Bh3 {[%emt 0:00:09]} 57. f5 {[%emt 0:00:59]} Kf7 {[%emt 0:00:19]} 58. Bc3 {[%emt 0:00:05]} b5 {[%emt 0:00:07]} 59. f6 {[%emt 0:00:13]} Ke6 {[%emt 0:00:32]} 60. Kh1 {[%emt 0:00:19]} b4 {[%emt 0:01:03]} 61. Bxb4 {[%emt 0:00:14]} Nxb4 {[%emt 0:00:05]} 62. Kg1 {[%emt 0:00:16]} Nd3 {[%emt 0:00:01]} 63. Kh1 {[%emt 0:00:08]} Kxf6 {[%emt 0:00:02]} 64. Kg1 {[%emt 0:00:09]} Kf5 {[%emt 0:00:21]} 65. Kh1 {[%emt 0:00:06]} Kf4 {[%emt 0:00:44]} 66. Kg1 {[%emt 0:00:04]} Kf3 {[%emt 0:00:21]} 67. Kh1 {[%emt 0:00:04]} Bg2+ {[%emt 0:00:09]} 68. Kg1 {[%emt 0:00:05]} Nf2 {[%emt 0:00:02]} 69. h4 {[%emt 0:00:22]} Kg3 {[%emt 0:00:03]} 70. h5 {[%emt 0:00:04]} Nh3# {[%emt 0:00:33]} 0-1

[Event "Polish Youth Ekstraliga 2022"]
[Site "Lublin"]
[Date "2022.07.01"]
[Round "7.12"]
[White "Dabrowska, Ewa"]
[Black "Szczotka, Klara"]
[Result "0-1"]
[ECO "B13"]
[WhiteElo "1133"]
[BlackElo "1863"]
[Annotator "NA RC"]
[PlyCount "80"]
[EventDate "2022.06.24"]
[EventType "team-tourn"]
[EventCountry "POL"]
[SourceTitle "playchess.com"]
[Source "ChessBase"]
[SourceQuality "1"]
[TimeControl "40/5400+30:1800+30"]

1. e4 {[%emt 0:00:03]} c6 {[%emt 0:00:04]} 2. d4 {[%emt 0:00:13]} d5 {[%emt 0:00:03]} 3. exd5 {[%emt 0:00:11]} cxd5 {[%emt 0:00:05]} 4. Bd3 {[%emt 0:01:30]} Nc6 {[%emt 0:00:04]} 5. c3 {[%emt 0:01:01]} Nf6 {[%emt 0:01:59]} 6. Bf4 {[%emt 0:02:13]} g6 {[%emt 0:01:46]} 7. Nd2 {[%emt 0:03:43]} Bf5 {[%emt 0:01:00]} 8. Bxf5 {[%emt 0:04:43]} gxf5 {[%emt 0:00:02]} 9. Ngf3 {[%emt 0:05:01]} e6 {[%emt 0:00:43]} 10. Ne5 {[%emt 0:02:56] 10.0-0 might become the main line.} Bg7 {[%emt 0:01:26]} 11. Ndf3 {[%emt 0:01:39]} O-O {[%emt 0:01:36] [#]} 12. Nxc6 $146 {[%emt 0:02:14]} ({Predecessor:} 12. O-O Ne7 13. Bg5 Ng6 14. Qe2 Qe8 15. Rfe1 Ne4 16. Bc1 f6 17. Nd3 e5 18. Nb4 {0-1 (45) Myers,D (2065)-Liang,J (2419) Chess.com INT 2022}) 12... bxc6 {[%emt 0:00:05]} 13. Ne5 {[%emt 0:00:39]} Rc8 {[%emt 0:01:12]} 14. Qf3 {[%emt 0:05:34]} Ne4 {[%emt 0:02:47]} 15. Qh3 {[%emt 0:02:59]} f6 {[%emt 0:06:02]} 16. Nf3 {[%emt 0:06:03]} e5 {[%emt 0:07:20]} (16... Qb6 $17 17. Bc1 Qb5) 17. dxe5 {[%emt 0:02:34]} fxe5 {[%emt 0:00:07]} 18. Bh6 {[%emt 0:06:23]} Qf6 {[%emt 0:02:40]} 19. Bxg7 {[%emt 0:02:12]} Kxg7 {[%emt 0:01:08]} 20. O-O {[%emt 0:02:06]} Rce8 {[%emt 0:01:00]} 21. Rad1 {[%emt 0:03:08]} a5 {[%emt 0:04:20]} 22. Nd2 {[%emt 0:03:20]} (22. Ne1 $15) 22... Ng5 {[%emt 0:06:45]} 23. Qg3 {[%emt 0:01:58]} f4 {[%emt 0:00:37]} 24. Qg4 {[%emt 0:01:15]} Qf5 {[%emt 0:03:17]} 25. Qxf5 {[%emt 0:02:19]} Rxf5 {[%emt 0:00:02]} 26. Rfe1 {[%emt 0:04:41]} e4 {[%emt 0:05:18]} 27. c4 {[%emt 0:05:04]} Rb8 {[%emt 0:11:41]} 28. cxd5 {[%emt 0:04:31]} cxd5 {[%emt 0:00:10]} 29. b3 $17 {[%emt 0:00:53]} Rc8 {[%emt 0:01:47]} 30. Rc1 {[%emt 0:00:55]} Rff8 {[%emt 0:00:16]} (30... Rxc1 $19 31. Rxc1 e3) 31. Red1 {[%emt 0:01:35]} Kf6 {[%emt 0:00:48]} (31... e3 $142 32. Rb1 exd2 33. Rxd2 Rfd8) 32. Kf1 {[%emt 0:00:44]} Ke5 {[%emt 0:00:17]} (32... Ne6 $19 33. Nb1 Rxc1 34. Rxc1 Ke5) 33. Ke2 {[%emt 0:01:05]} Ne6 {[%emt 0:00:39]} 34. Nb1 {[%emt 0:03:50]} Nd4+ {[%emt 0:04:42]} 35. Kd2 {[%emt 0:01:51]} Rg8 {[%emt 0:00:41]} 36. g3 {[%emt 0:01:17]} Nf3+ {[%emt 0:02:12]} 37. Ke2 {[%emt 0:01:02]} d4 {[%emt 0:05:29]} 38. gxf4+ {[%emt 0:01:52]} Kxf4 {[%emt 0:00:19]} 39. h3 {[%emt 0:00:31]} d3+ {[%emt 0:00:07]} 40. Kf1 {[%emt 0:00:00]} Rg1# {[%emt 0:00:00]} 0-1

[Event "Polish Youth Ekstraliga 2022"]
[Site "Lublin"]
[Date "2022.07.01"]
[Round "7.13"]
[White "Czernek, Tymon"]
[Black "Poltorak, Sebastian"]
[Result "1-0"]
[ECO "B12"]
[WhiteElo "2199"]
[BlackElo "2322"]
[Annotator "TA"]
[PlyCount "77"]
[EventDate "2022.06.24"]
[EventType "team-tourn"]
[EventCountry "POL"]
[SourceTitle "playchess.com"]
[Source "ChessBase"]
[SourceQuality "1"]
[TimeControl "40/5400+30:1800+30"]

{[%evp 11,77,-28,-6,-11,10,26,32,33,113,107,91,103,94,84,250,50,55,54,38,48,55,57,56,68,62,68,55,55,45,48,107,96,91,98,164,177,185,160,171,106,111,110,105,116,166,166,206,229,235,221,293,289,315,310,332,332,404,378,413,333,475,459,502,513,507,497,489,418]} 1. e4 {[%emt 0:00:05]} c6 {[%emt 0:00:07]} 2. d4 {[%emt 0:00:05]} d5 {[%emt 0:00:03]} 3. f3 {[%emt 0:00:04]} e6 {[%emt 0:02:55]} 4. Nc3 {[%emt 0:00:03]} Bb4 {[%emt 0:01:10]} 5. Bf4 {[%emt 0:00:14]} Nf6 {[%emt 0:00:51]} 6. Qd3 {[%emt 0:00:05]} b6 {[%emt 0:01:26]} 7. Nge2 {[%emt 0:00:03] B12: Caro-Kann: Advance Variation.} Ba6 {[%emt 0:01:21]} 8. Qe3 {[%emt 0:00:02]} c5 {[%emt 0:03:29]} 9. O-O-O {[%emt 0:04:37] White is slightly better.} Nc6 {[%emt 0:04:24]} (9... O-O $1 $14) 10. exd5 {[%emt 0:23:50]} Nxd5 {[%emt 0:00:08]} 11. Nxd5 {[%emt 0:01:48]} Qxd5 {[%emt 0:00:11] [#]} 12. a3 $146 {[%emt 0:00:21]} ({Predecessor:} 12. Nc3 Bxc3 13. Bxa6 Bxd4 14. Qa3 Qf5 15. Bg3 Rd8 16. Bb5 Qd5 17. c3 Be3+ 18. Kb1 {1-0 (41) Karpus,M (1703)-Niezgodka,A Borowice 2012}) 12... Bxe2 $2 {[%emt 0:51:26]} (12... cxd4 $16 13. Nxd4 Bxf1 14. axb4 (14. Rdxf1 $2 Bc5 $19) 14... Ba6) 13. Bxe2 $2 {[%emt 0:00:25]} ({White must play} 13. Qxe2 $18 Ba5 14. dxc5) 13... cxd4 $14 {[%emt 0:01:50][%cal Od5a2] [#] And now ...Qa2! would win.} 14. Qe4 {[%emt 0:00:32]} Qxe4 {[%emt 0:01:51]} 15. fxe4 {[%emt 0:00:03]} Be7 {[%emt 0:03:35]} (15... e5 $2 16. Bb5 Rc8 17. Bxe5 $16 (17. axb4 exf4 18. Rxd4 Ke7 $11)) 16. Bb5 {[%emt 0:00:04][%csl LRc6,LRd4] This bishop pair is nice.} Rc8 {[%emt 0:00:13]} 17. Rxd4 $1 {[%emt 0:01:31] [#] Black must now prevent Rc4.} a6 {[%emt 0:01:04]} 18. Bxc6+ {[%emt 0:01:01]} (18. Bxa6 $2 Nxd4 19. Bxc8 Ne2+ 20. Kb1 Nxf4 $19) 18... Rxc6 {[%emt 0:00:02]} 19. Rhd1 $36 {[%emt 0:00:16][%mdl 2048] White has some pressure.} O-O {[%emt 0:02:23]} 20. Rd7 {[%emt 0:00:08][%cal Bd4d7,Bd7d6,Bd6b6][%mdl 32]} e5 {[%emt 0:00:09]} (20... Bc5 $14) 21. Bxe5 {[%emt 0:02:55]} (21. Rxe7 $6 exf4 22. h3 Rg6 $11) 21... Re6 {[%emt 0:03:35]} 22. Bd6 {[%emt 0:03:50] White is more active.} Bxd6 {[%emt 0:01:05]} (22... Bg5+ $16 {was called for.} 23. Kb1 Rfe8) 23. R7xd6 $18 {[%emt 0:00:40]} (23. R1xd6 Rxe4 24. Rxb6 Re1+ 25. Rd1 Re2 $16) 23... Rxe4 {[%emt 0:00:06]} 24. Rxb6 $16 {[%emt 0:02:13][%mdl 4096] Endgame KRR-KRR} Re2 {[%emt 0:00:12]} 25. Rg1 {[%emt 0:00:35]} (25. Rxa6 $6 Rxg2 26. Rad6 Rxh2 $16) (25. b4 $18) 25... Rc8 {[%emt 0:01:36]} 26. c3 g5 27. a4 {[%emt 0:04:37]} (27. Rxa6 $6 Rb8 $11) 27... Rd8 {[%emt 0:07:27]} (27... Kg7 $16 28. h3 (28. Rxa6 Rb8 $11) 28... Ra8) 28. h3 (28. Rxa6 Rb8 $11) 28... Rdd2 {[%emt 0:01:51]} 29. g4 {[%emt 0:01:44]} (29. Rxa6 Rxb2 30. Rc6 Ra2 $17) 29... Rh2 {[%emt 0:02:05]} 30. Rg3 {[%emt 0:01:17]} (30. Rxa6 Rc2+ 31. Kb1 Rxb2+ 32. Ka1 Ra2+ 33. Kb1 Rhb2+ 34. Kc1 Rf2 $15) 30... Kg7 {[%emt 0:01:20]} 31. Rf3 {[%emt 0:02:13]} (31. Rxa6 Rc2+ 32. Kb1 Rxb2+ 33. Ka1 Ra2+ 34. Kb1 Rhb2+ 35. Kc1 Rf2 $17) 31... Rd7 {[%emt 0:03:36]} 32. Kb1 {[%emt 0:01:13]} (32. Rxa6 Rh1+ 33. Kc2 Rh2+ 34. Kb3 Rb7+ 35. Kc4 Rc7+ 36. Kb3 Rb7+ 37. Ka3 Rhxb2 $16) 32... h6 {[%emt 0:01:39]} 33. Ka2 {[%emt 0:00:56]} ({Worse is} 33. Rxa6 Rb7 $11) 33... Re7 {[%emt 0:00:29]} 34. Ka3 {[%emt 0:00:52]} (34. Rxa6 Rb7 $16) 34... Rh1 {[%emt 0:01:42]} 35. Kb3 {[%emt 0:02:11]} (35. Rxa6 Ra1+ 36. Kb4 (36. Kb3 Rb7+ 37. Kc4 Rxb2 $18) 36... Rb7+ 37. Kc5 Rxb2 $18) 35... Rc7 {[%emt 0:01:10]} (35... a5 {is a better defense.} 36. Rb5 Ra7) 36. Kb4 $18 {[%emt 0:01:47] White is clearly winning.} ({Not} 36. Rxa6 Rb7+ 37. Kc4 (37. Ka2 Rh2 $16) 37... Rxb2 $18) 36... Ra1 {[%emt 0:00:40]} 37. a5 {[%emt 0:00:31]} Ra7 {[%emt 0:00:26]} 38. Rff6 {[%emt 0:00:26]} h5 {[%emt 0:00:36]} 39. Rf5 {[%emt 0:00:57] Weighted Error Value: White=0.17 (very precise) /Black=0.30} 1-0